Cogmind - Beta 15 *** ADVENTURER MODE // 2025.10.08 @ 09:31:17 Player: XXZ Result: Destroyed self with Rocket Launcher Performance ------------- Evolutions (1) 500 Regions Visited (3) 600 Robots Destroyed (57) 285 Value Destroyed (1291) 1291 Prototype IDs (3) 60 Alien Tech Used (0) 0 Bonus (0) 0 TOTAL SCORE: 2736 Bonus ------- None Cogmind --------- Core Integrity 0/400 Matter 178/300 Energy 125/125 System Corruption 14% Temperature Cool (0) Movement Walking (190) Ox1 Location -9/Mines Parts ------- > --- POWER (1) -------- Light Ion Engine > --- PROPULSION (4) --- Aluminum Leg Aluminum Leg Aluminum Leg > --- UTILITY (2) ------ High-capacity Storage Unit Weight Redist. System > --- WEAPON (2) ------- Rocket Launcher > --- INVENTORY (20) --- Light Ion Engine Light Ion Engine Wheel Wheel Small Storage Unit Experimental Sensor Array Terrain Scanner Small Laser Flail Peak State ------------ > --- POWER ------------ Light Nuclear Core > --- PROPULSION ------- Aluminum Leg Aluminum Leg Aluminum Leg > --- UTILITY ---------- High-capacity Storage Unit Weight Redist. System > --- WEAPON ----------- Improved Light Cannon Rocket Launcher > --- INVENTORY -------- Light Ion Engine Light Ion Engine Small Storage Unit Terrain Scanner Small Laser Flail [Rating: 13] Favorites ----------- Power Ion Engine Engine Ion Engine Power Core Light Nuclear Core Propulsion Aluminum Leg Treads Light Treads Leg Aluminum Leg Utility High-capacity Storage Unit Device Weight Redist. System Storage High-capacity Storage Unit Weapon Light Assault Rifle Energy Gun Small Laser Energy Cannon Advanced Beam Cannon Ballistic Gun Light Assault Rifle Ballistic Cannon Improved Light Cannon Launcher Rocket Launcher Special Weapon Mining Laser Build | -11 -10 -9 -9 ------- Run | Yrd Mat Mat Min Slots Evolved 2 | . . 2 . Power . | . . . . Propulsion 2 | . . 2 . Utility . | . . . . Weapon . | . . . . Parts Attached 24 | 6 2 12 4 Power 4 | 1 . 1 2 Engine 3 | 1 . . 2 Core 1 | . . 1 . Reactor . | . . . . Propulsion 6 | 2 . 3 1 Treads 2 | 2 . . . Leg 4 | . . 3 1 Wheel . | . . . . Hover . | . . . . Flight . | . . . . Utility 4 | 1 2 1 . Device 1 | . . 1 . Storage 3 | 1 2 . . Processor . | . . . . Hackware . | . . . . Protection . | . . . . Artifact . | . . . . Weapon 10 | 2 . 7 1 Energy Gun 1 | . . 1 . Energy Cannon 1 | . . 1 . Ballistic Gun 4 | 2 . 2 . Ballistic Cannon 1 | . . 1 . Launcher 2 | . . 1 1 Special Weapon 1 | . . 1 . Impact Weapon . | . . . . Slashing Weapon . | . . . . Piercing Weapon . | . . . . Special Melee Weapon . | . . . . Unidentified Prototypes 1 | . . 1 . Corrupted Parts 2 | . . 2 . System Corruption 11 | . . 11 . Parts Lost 13 | . . 10 3 Power 2 | . . 1 1 Propulsion 3 | . . 2 1 Utility 1 | . . 1 . Weapon 7 | . . 6 1 Highest Loss Streak 4 | . . 4 2 To Critical Strikes . | . . . . Average Backups 5 | 1 3 5 7 Power 1 | . 1 1 2 Propulsion . | . . . 1 Utility 1 | . . 2 2 Weapon 1 | . 1 1 1 Tool/Special . | . . . . Unused Backups 7 | . . 1 6 Power 1 | . . . 1 Propulsion 3 | . . 1 2 Utility 2 | . . . 2 Weapon 1 | . . . 1 Tool/Special . | . . . . Average Slot Usage (%) 72 | . 92 60 80 Engine 6 | . 14 3 6 Core 2 | . . 2 4 Treads 9 | . 28 6 . Leg 12 | . . 6 32 Device 4 | . . 3 11 Storage 16 | . 20 17 11 Energy Gun 1 | . . 2 . Ballistic Gun 11 | . 28 10 . Ballistic Cannon 2 | . . 3 4 Launcher 3 | . . 1 10 Peak Build Rating 13 | 6 7 12 13 Average Rating 7 | 4 6 7 10 On Entrance 6 | . 6 7 12 Naked Turns . | . . . . Heaviest Build 53 | 13 49 52 53 Greatest Support 40 | 40 40 40 36 Greatest Overweight (x) 15 | 2 1 15 1 Average Overweight (x) 1 | . . 3 1 Largest Inventory Capacity 20 | 8 20 20 20 Average Capacity 17 | 6 10 20 20 Most Carried 9 | 3 6 8 9 Average Carried 5 | 1 3 5 7 Final Capacity 20 | 8 20 20 20 Final Carried 9 | 2 6 5 9 Class Distribution -------------------- 72% | Mutant 27% | Scavenger-Mutant Dominant Class ---------------- Mutant | -10/Materials Mutant | -9/Materials Scavenger-Mutant | -9/Mines Resources | -11 -10 -9 -9 ----------- Run | Yrd Mat Mat Min Matter Collected 952 | 193 169 482 108 Remotely . | . . . . Salvage Created 1722 | . 231 1350 141 Parts 113 | . 13 84 16 Haulers Intercepted 1 | . . 1 . Recyclers Shooed 3 | . 1 2 . Parts Field Recycled . | . . . . Retrieved Matter . | . . . . Parts Self-Destructed . | . . . . Prevented . | . . . . Kills | -11 -10 -9 -9 ------- Run | Yrd Mat Mat Min Combat Hostiles Destroyed 42 | . 6 26 10 Guns 19 | . 6 13 . Cannons 13 | . . 10 3 AOE 10 | . . 3 7 Classes Destroyed 9 | . 3 5 1 Worker 4 | . . 2 2 Builder 3 | . . 3 . Tunneler 1 | . . . 1 Hauler 1 | . . 1 . Recycler 3 | . . 3 . Watcher 3 | . 1 2 . Swarmer 16 | . 2 7 7 Grunt 21 | . 4 14 3 Sentry 5 | . . 5 . Best Kill Streak 7 | . 3 7 5 Combat Bots Only 4 | . 2 4 4 Max Kills in Single Turn 5 | . 1 5 2 Gunslinging . | . . . . Exploded 2 | . . 1 2 Melee . | . . . . Uniques/NPCs Destroyed . | . . . . Combat | -11 -10 -9 -9 -------- Run | Yrd Mat Mat Min Hostile Shots Fired 232 | . 31 173 28 Missed 71 | . 12 50 9 Hits 161 | . 19 123 19 Projectile 161 | . 19 123 19 Critical Strikes 3 | . . 3 . Damage Taken 1779 | . 185 1360 234 Core 458 | . 43 384 31 Absorbed by Shields . | . . . . Ignored by Resistances 529 | . 58 403 68 Core Remaining (%) 91 | 100 82 . . Volleys Fired 137 | . 23 102 12 Largest 2 | . 2 2 2 Hottest 120 | . 40 120 66 Shots Fired 205 | . 46 142 17 Gun 141 | . 46 95 . Cannon 37 | . . 32 5 Launcher 22 | . . 10 12 Special 5 | . . 5 . Kinetic 157 | . 46 106 5 Thermal 26 | . . 26 . Explosive 12 | . . . 12 Electromagnetic 10 | . . 10 . Robot Hit Streak 31 | . 15 31 4 Robot Miss Streak 3 | . 2 3 2 Penetration Max . | . . . . Secondary Targets 1 | . 1 . . Max Gunslinging Chain 1 | . 1 . . Shots Hit Robots 153 | . 37 107 9 Core Hits 90 | . 14 63 13 Critical Kills . | . . . . Critical Parts Destroyed 1 | . . 1 . Critical Strikes 2 | . . 2 . Destroy 1 | . . 1 . Blast 1 | . . 1 . Melee Attacks . | . . . . Impact . | . . . . Slashing . | . . . . Piercing . | . . . . Sneak Attacks . | . . . . Combat Hostiles . | . . . . Follow-up Attacks . | . . . . Damage Inflicted 3084 | . 384 1871 829 Guns 1119 | . 384 735 . Cannons 623 | . . 540 83 Explosions 1257 | . . 528 729 Melee . | . . . . Ramming 37 | . . 20 17 Kinetic 1561 | . 384 1094 83 Thermal 269 | . . 269 . Explosive 729 | . . . 729 Electromagnetic 488 | . . 488 . Impact . | . . . . Slashing . | . . . . Piercing . | . . . . Highest Corruption 14 | . . 14 14 Average Corruption 11 | . . 9 14 Corruption Purged . | . . . . Corruption Blocked . | . . . . Effects 54 | . . 31 23 Message Errors 2 | . . 2 . Matter Fused 13 | . . 6 7 Heat Flow Errors 13 | . . 5 8 Energy Discharges 5 | . . 4 1 Parts Rejected 2 | . . 2 . Data Loss (minor) 5 | . . 2 3 Data Loss (major) 6 | . . 2 4 Misfires 1 | . . 1 . Alerts 2 | . . 2 . Weapon Failures 5 | . . 5 . Overload Shots . | . . . . Overflow Damage 65 | . . 22 43 Projectiles . | . . . . Explosions 65 | . . 22 43 Melee . | . . . . Knockbacks 5 | . . 4 1 Impact . | . . . . Kinetic 4 | . . 3 1 Secondary 1 | . . 1 . Self-Inflicted Damage 289 | . . 210 79 Shots 14 | . . 11 3 Rammed 4 | . . 4 . Targets Rammed 10 | . . 8 2 Kicked 6 | . . 4 2 Crushed . | . . . . Highest Temperature 274 | . 21 272 274 Average Temperature 59 | . 8 52 87 Received Heat Transfer 663 | . 120 489 54 Siege Activations . | . . . . Martial Activations . | . . . . Shielding Activations . | . . . . Robots Disrupted . | . . . . Combat Hostiles . | . . . . Robots Corrupted . | . . . . Combat Hostiles . | . . . . Parts Fried 5 | . . 5 . Impact Corruptions . | . . . . Robots Melted . | . . . . Combat Hostiles . | . . . . Parts Melted . | . . . . Heat Transferred 560 | . . 560 . Parts Sabotaged . | . . . . Parts Stolen . | . . . . Parts Stripped . | . . . . Power Chain Reactions 5 | . . 5 . Alert | -11 -10 -9 -9 ------- Run | Yrd Mat Mat Min Maximum Alert Level 1 | . . 1 . Low Security (%) 96 | 100 100 93 100 Level 1 3 | . . 6 . Level 2 . | . . . . Level 3 . | . . . . Level 4 . | . . . . Level 5 . | . . . . High Security . | . . . . Max Security . | . . . . Peak Influence 215 | . 97 215 122 Initial 51 | . . . 51 Average 83 | . 33 113 70 Influence Increases 1193 | . 157 738 298 Destroy 0b10 Robot/C 840 | . 120 520 200 Destroy 0b10 Robot/NC 75 | . 5 55 15 Destroy Leader 188 | . 32 126 30 Disable Machine 18 | . . 18 . Destroy Structure 72 | . . 19 53 Influence Decreases 1174 | . 157 581 436 Entered New Map 106 | . . . 106 Time Decay 938 | . 157 481 300 Lost Part 130 | . . 100 30 Squads Dispatched 2 | . . 2 . Investigation 1 | . . 1 . Extermination . | . . . . Reinforcement 1 | . . 1 . Assault . | . . . . Garrison . | . . . . Intercept . | . . . . Searches Triggered . | . . . . Construction Impeded 1 | . . 1 . Haulers Reinforced . | . . . . Active Scanning Responses . | . . . . Cargo Convoy Interrupts . | . . . . Stealth | -11 -10 -9 -9 --------- Run | Yrd Mat Mat Min Distress Signals 4 | . . 4 . Communications Jammed . | . . . . Distress Signals . | . . . . Times Spotted 59 | . 8 41 10 Peak Tracking Total 6 | . 3 6 4 Tactical Retreats . | . . . . Traps | -11 -10 -9 -9 ------- Run | Yrd Mat Mat Min Traps Triggered 4 | . . 4 . Indirectly . | . . . . Trap Hack Attempts . | . . . . Triggered . | . . . . Disarmed . | . . . . Reprogrammed . | . . . . Reused . | . . . . Traps Extracted . | . . . . Installed . | . . . . Triggered . | . . . . Machines | -11 -10 -9 -9 ---------- Run | Yrd Mat Mat Min Machines Disabled 2 | . . 2 . Max in Single Turn 2 | . . 2 . Machines Repaired . | . . . . Machines Dismantled . | . . . . Machines Sabotaged . | . . . . Overloaded Fab Kills . | . . . . Hacking | -11 -10 -9 -9 --------- Run | Yrd Mat Mat Min Machines Accessed 4 | . 2 2 . Terminals 3 | . 2 1 . Fabricators . | . . . . Repair Stations . | . . . . Recycling Units 1 | . . 1 . Scanalyzers . | . . . . Garrison Access . | . . . . Total Hacks 8 | . 4 4 . Successful 4 | . 2 2 . Failed 4 | . 2 2 . Catastrophic . | . . . . Database Lockouts . | . . . . Manual . | . . . . Terminals 7 | . 4 3 . Fabricators . | . . . . Repair Stations . | . . . . Recycling Units 1 | . . 1 . Scanalyzers . | . . . . Garrison Access . | . . . . Terminal Hacks 3 | . 2 1 . Robot Analysis 2 | . 2 . . Prototype ID Bank 1 | . . 1 . Fabricator Hacks . | . . . . Repair Station Hacks . | . . . . Recycling Unit Hacks 1 | . . 1 . Report Inventory 1 | . . 1 . Scanalyzer . | . . . . Garrison Access Hacks . | . . . . Unauthorized Hacks . | . . . . Terminals . | . . . . Fabricators . | . . . . Repair Stations . | . . . . Recycling Units . | . . . . Scanalyzers . | . . . . Garrison Access . | . . . . Data Cores Recovered . | . . . . Used . | . . . . Hacking Detections . | . . . . Full Trace Events . | . . . . Feedback Events . | . . . . Feedback Blocked . | . . . . Robot Schematics Acquired . | . . . . Robots Built . | . . . . Authchips . | . . . . Time . | . . . . Total Robot Build Rating . | . . . . Part Schematics Acquired . | . . . . Parts Built . | . . . . Authchips . | . . . . Time . | . . . . Total Part Build Rating . | . . . . Parts Repaired . | . . . . Time . | . . . . Parts Recycled . | . . . . Recycled Matter . | . . . . Retrieved Matter . | . . . . Retrieved Components . | . . . . Parts Scanalyzed . | . . . . Part Schematics Acquired . | . . . . Parts Damaged . | . . . . Bothacking | -11 -10 -9 -9 ------------ Run | Yrd Mat Mat Min Used RIF Installer . | . . . . Robots Hacked . | . . . . Non-combat . | . . . . Combat . | . . . . Robot Hacks Applied . | . . . . Relay Couplers Released . | . . . . Fabnet Peak Effective % . | . . . . Robots Rewired . | . . . . Allies Hacked . | . . . . Hacks Repelled . | . . . . Allies | -11 -10 -9 -9 -------- Run | Yrd Mat Mat Min Total Allies . | . . . . Largest Group . | . . . . Highest-Rated Group . | . . . . Highest-Rated Ally . | . . . . Total Orders . | . . . . Ally Attacks . | . . . . Total Damage . | . . . . Kills . | . . . . Allies Corrupted . | . . . . Allies Melted . | . . . . Intel | -11 -10 -9 -9 ------- Run | Yrd Mat Mat Min Active Infowar (turns) . | . . . . Robot Analysis Total 2 | . 2 . . Derelict Logs Recovered . | . . . . Drone Launches . | . . . . Drone Recoveries . | . . . . Exploration | -11 -10 -9 -9 ------------- Run | Yrd Mat Mat Min Turns Passed 2347 | 68 459 1215 605 Spaces Moved 849 | 47 223 291 288 Core 67 | 19 . 48 . Treads 372 | 28 223 121 . Legs 410 | . . 122 288 Wheels . | . . . . Hover . | . . . . Flight . | . . . . Fastest Speed 50 | 50 160 190 190 Average Speed 221 | 121 175 303 190 Slowest Speed 800 | 160 240 800 190 Overloaded Moves . | . . . . Propulsion Burnouts . | . . . . Robots Hopped . | . . . . Potential Cave-ins . | . . . . Cave-ins Triggered . | . . . . Exploration Rate (%) 33 | 5 49 24 54 Regions Visited 3 Branch Regions 1 Pre-discovered Areas . | . . . . Known Exits Taken . | . . . . Unknown Exits Taken 3 | 1 1 1 . Scrap Searched . | . . . . Spaces Dug . | . . . . Terrain Destroyed 75 | . . 17 58 Melee . | . . . . Projectile 1 | . . 1 . AOE 74 | . . 16 58 Terrain Rammed . | . . . . Walls Destroyed . | . . . . Machines Disabled . | . . . . Actions | -11 -10 -9 -9 --------- Run | Yrd Mat Mat Min Total 1074 | 55 250 442 327 Wait 28 | . . 11 17 Move 846 | 46 222 290 288 Hop . | . . . . Pick Up 18 | 3 3 8 4 Fast Attach 19 | 5 1 11 2 Attach 9 | 1 . 8 . Detach . | . . . . Swap 6 | . 1 3 2 Drop 1 | . . 1 . Fire 137 | . 23 102 12 Melee . | . . . . Ram 4 | . . 4 . Kick 6 | . . 4 2 Crush . | . . . . Escape Stasis . | . . . . Rewire . | . . . . Trap . | . . . . Miscellaneous . | . . . . Route ------- -11/Scrapyard -10/Materials (discovered 2 exits: *Mat / [*Min]) -9/Materials -9/Mines History --------- Turn | Location | Event 6 | -11/Scrapyard | Discovered new exit (range 15) 69 | -11/Scrapyard | Entered Materials 243 | -10/Materials | Discovered new exit (range 8) 330 | -10/Materials | Build established: Mutant 392 | -10/Materials | Discovered new exit (range 15) 528 | -10/Materials | Entered another Materials area 528 | -9/Materials | Evolved 2 slots: Propulsion x2 994 | -9/Materials | Lost 4 parts (1p1n2w) 1211 | -9/Materials | Discovered new exit (range 15) 1252 | -9/Materials | Core integrity fell below 50% 1267 | -9/Materials | System corruption reached 10% 1288 | -9/Materials | Core integrity fell below 20% 1743 | -9/Materials | Entered Mines 1760 | -9/Mines | Received a Rocket Launcher from a helpful Derelict 1933 | -9/Mines | Build established: Scavenger-Mutant 2059 | -9/Mines | Found a damaged Exp. Sensor Array with a note attached 2066 | -9/Mines | Found Prototype Device 2348 | -9/Mines | Destroyed self with Rocket Launcher Last Messages --------------- U-05 Engineer lays Concrete. U-05 Engineer builds a Wall. R-06 Scavenger collects Lgt. Assault Rifle. U-05 Engineer lays Concrete. U-05 Engineer builds a Wall. U-05 Engineer lays Concrete. U-05 Engineer builds a Wall. U-05 Engineer lays Concrete. System corrupted: Matter fused (-10). U-05 Engineer lays Concrete. R-06 Scavenger collects Wheel. U-05 Engineer lays Concrete. System corrupted: Heat flow error (+290). System corrupted: Heat flow error (+224). Kicked T-07 Excavator out of the way. Acquired 73 matter. System corrupted: Matter fused (-10). System corrupted: Substantial component data lost. System corrupted: Heat flow error (+294). T-07 Excavator destroyed. Map ----- +----------------------------------------------------+ | | | | | | | | | | | ?????????????????????????????????????????????????? | | ?????????????????????????????????????????????????? | | ?????????????????????????????????????????????????? | | ?????????????????????????????????????????????????? | | ######???????????????????????????????????????????? | | # #??#####????????????????????????????????????? | | # ??# #????????????????????????????????????? | | # #??# #????#####???????????????????????????? | | # ???# ##??## ####????????????????????????? | | # #### ##?# ##???????????????????????? | | ## #### #?# #???????????????????????? | | # ## #?? #???????????????????????? | | #??# #???????????????????????? | | ###?# #????????????????????????? | | ###### #????????????????????????? | | #????????????????????????? | | ## ##???????????????????????? | | ###### ###### ##??????????????????????? | | ######## ##??# k ##?????????????????????? | | ????# ##?## ##????????????????????? | | ????# ### #??## @ #????????????????????? | | ????# ?### #???## ????????????????????? | | ????# ##### ##????## #???????????????????? | | ?????? ## ##??????## * ##???????????????????? | | ??????? ## #????????# %= ????????????????????? | | ???????# ## #????????###=####???????????????????? | | ???????# ## #??????????# ??????????????????????? | | ???????# ## #??????????# ##?????????????????????? | | ?????### #??????????# #??????????????????????? | | ?##### ####??????????? ??????????????????????? | | ?# ##?????????????""??????????????????????? | | ?## #####?????????""??????????????????????? | | ??## ##????????"???????????????????????? | | ???# #????????????????????????????????? | | ??## #????????????????????????????????? | | ?## ### ##???????????????????????????????? | | ## #### #???????????????????????????????? | | #?## #???????????????????????????????? | | ## #??## #???????????????????????????????? | | ## #???## ##??????????????????????????????? | | # ##????## #??????????????????????????????? | | # ###???## #??????????????????????????????? | | # ###?## #??????????????????????????????? | | # #### ##?????????????????????????????? | | # ### #?????????????????????????????? | +----------------------------------------------------+ Best States ------------- Heat Dissipation 28 Energy Generation 14 Energy Capacity 350 Matter Stores 300 Matter Capacity 300 Sight Range 16 Terrain Scan Density 10 Additional Mass Support 6 Resistance: KI 20 Resistance: TH 20 Resistance: EX 20 Resistance: EM 20 Resistance: I 20 Resistance: S 20 Resistance: P 20 Evasion (%) 50 Recoil Reduction 2 Offensive Hacking 10 Item Schematics ----------------- None Robot Schematics ------------------ None Fabricated ------------ Nothing Repaired ---------- Nothing Alien Tech Used ----------------- None Achievements -------------- None Challenges ------------ None Game ------ Seed ArmorProtonShovel Manual? 0 Play Time 00:24:15 Cumulative 35.1 hours Start 2025.10.08 @ 09:10:40 End 2025.10.08 @ 09:31:17 Sessions 1 Manual Loads 0 Difficulty Adventurer Special Mode None Game No. 54 Rogue 15 Adventurer 39 Explorer 0 Win Type - Total 0 Types 0/0/0/0/0/0/0/0/0/0 Lore% 5 Gallery% 21 Achievement% 18 Wizard Run 0 Options --------- Layout 1 ASCII 0 Keyboard 0 Movement Numpad Keybinds 0 Fullscreen 1 Font 16/SmallcapsGlow Map View 55x38 Zoom Use 0% Tactical HUD 0 Map Filters NONE Filters NONE Steam 1 RUN: db71b209-1f5d-4e62-b456-26e7c3ec0fa1